[Event "Masters Tournament (MTO)"]
[Site "Biel, Switzerland"]
[Date "2026.07.21"]
[Round "8.17"]
[White "Harish, Neeraj"]
[Black "Pleschke, Julius Jonas"]
[Result "1-0"]
[TimeControl "100+30+30sec/move"]
[WhiteTitle "-"]
[BlackTitle "-"]
[WhiteFideId "30958130"]
[BlackFideId "54734258"]
[WhiteElo "2201"]
[BlackElo "2280"]

1. e4 {[%clk 01:39:53]} {[%emt 00:01:07]} c6 {[%clk 01:40:57]} {[%emt
00:00:03]} 2. d4 {[%clk 01:40:14]} {[%emt 00:00:10]} d5 {[%clk 01:41:24]}
{[%emt 00:00:03]} 3. e5 {[%clk 01:40:36]} {[%emt 00:00:08]} Bf5 {[%clk
01:41:50]} {[%emt 00:00:03]} 4. h4 {[%clk 01:40:39]} {[%emt 00:00:27]} c5
{[%clk 01:42:16]} {[%emt 00:00:04]} 5. Nf3 {[%clk 01:38:26]} {[%emt 00:02:43]}
Nc6 {[%clk 01:41:04]} {[%emt 00:01:42]} 6. dxc5 {[%clk 01:35:31]} {[%emt
00:03:25]} Bg4 {[%clk 01:40:05]} {[%emt 00:01:28]} 7. c3 {[%clk 01:33:22]}
{[%emt 00:02:40]} e6 {[%clk 01:32:43]} {[%emt 00:07:51]} 8. Be3 {[%clk
01:32:30]} {[%emt 00:01:23]} Bxf3 {[%clk 01:28:41]} {[%emt 00:04:32]} 9. Qxf3
{[%clk 01:32:48]} {[%emt 00:00:12]} Nxe5 {[%clk 01:29:01]} {[%emt 00:00:09]} 10.
Bb5+ {[%clk 01:32:02]} {[%emt 00:01:17]} Nc6 {[%clk 01:29:01]} {[%emt
00:00:29]} 11. c4 {[%clk 01:26:45]} {[%emt 00:05:48]} Nf6 {[%clk 01:17:10]}
{[%emt 00:12:21]} 12. Nc3 {[%clk 01:20:46]} {[%emt 00:06:29]} Be7 {[%clk
01:14:43]} {[%emt 00:02:57]} 13. h5 {[%clk 01:16:30]} {[%emt 00:04:47]} O-O
{[%clk 01:09:55]} {[%emt 00:05:16]} 14. h6 {[%clk 01:11:42]} {[%emt 00:05:19]}
g6 {[%clk 01:08:40]} {[%emt 00:01:41]} 15. Rd1 {[%clk 01:01:11]} {[%emt
00:11:05]} a6 {[%clk 01:03:47]} {[%emt 00:05:23]} 16. cxd5 {[%clk 00:55:56]}
{[%emt 00:05:45]} exd5 {[%clk 01:03:46]} {[%emt 00:00:31]} 17. Ba4 {[%clk
00:48:44]} {[%emt 00:07:43]} Ne5 {[%clk 00:43:25]} {[%emt 00:20:49]} 18. Qe2
{[%clk 00:45:43]} {[%emt 00:03:32]} Neg4 {[%clk 00:42:03]} {[%emt 00:01:51]} 19.
Bd4 {[%clk 00:39:45]} {[%emt 00:06:30]} Qc7 {[%clk 00:41:35]} {[%emt 00:00:58]}
20. b4 {[%clk 00:33:37]} {[%emt 00:06:37]} a5 {[%clk 00:35:43]} {[%emt
00:06:22]} 21. a3 {[%clk 00:29:49]} {[%emt 00:04:18]} Bd8 {[%clk 00:15:15]}
{[%emt 00:20:58]} 22. Bb5 {[%clk 00:22:23]} {[%emt 00:07:55]} axb4 {[%clk
00:13:27]} {[%emt 00:02:19]} 23. axb4 {[%clk 00:21:08]} {[%emt 00:01:46]} Qf4
{[%clk 00:12:22]} {[%emt 00:01:33]} 24. g3 {[%clk 00:17:27]} {[%emt 00:04:12]}
Qf5 {[%clk 00:05:45]} {[%emt 00:07:06]} 25. f3 {[%clk 00:12:48]} {[%emt
00:05:10]} Bc7 {[%clk 00:05:57]} {[%emt 00:00:18]} 26. fxg4 {[%clk 00:12:00]}
{[%emt 00:01:18]} Bxg3+ {[%clk 00:06:14]} {[%emt 00:00:13]} 27. Bf2 {[%clk
00:10:39]} {[%emt 00:01:51]} Qf4 {[%clk 00:01:17]} {[%emt 00:05:27]} 28. O-O
{[%clk 00:06:03]} {[%emt 00:05:06]} Nxg4 {[%clk 00:00:37]} {[%emt 00:01:10]} 29.
Nxd5 {[%clk 00:03:23]} {[%emt 00:03:11]} Qxh6 {[%clk 00:00:31]} {[%emt
00:00:36]} 30. Bxg3 {[%clk 00:03:21]} {[%emt 00:00:32]} f5 {[%clk 00:00:38]}
{[%emt 00:00:22]} 31. Bc4 {[%clk 00:02:43]} {[%emt 00:01:08]} Ra3 {[%clk
00:00:33]} {[%emt 00:00:35]} 32. Ne7+ {[%clk 00:02:54]} {[%emt 00:00:20]} Kg7
{[%emt 00:00:37]} 33. Qb2+ {[%clk 00:02:38]} {[%emt 00:00:40]} Rf6 {[%clk
00:00:33]} {[%emt 00:00:28]} 34. Qxa3 {[%clk 00:02:37]} {[%emt 00:00:31]} Qh3
{[%clk 00:00:40]} {[%emt 00:00:22]} 35. Rd8 {[%clk 00:01:57]} {[%emt 00:01:11]}
h5 {[%clk 00:00:33]} {[%emt 00:00:36]} 36. Rg8+ {[%clk 00:01:41]} {[%emt
00:00:47]} Kh7 {[%clk 00:01:02]} {[%emt 00:00:01]} 37. Rh8+ {[%clk 00:01:12]}
{[%emt 00:01:00]} Kxh8 {[%clk 00:00:36]} {[%emt 00:00:55]} 38. Qa8+ {[%clk
00:01:35]} {[%emt 00:00:07]} Kg7 {[%clk 00:00:38]} {[%emt 00:00:27]} 39. Qg8+
{[%clk 00:02:01]} {[%emt 00:00:05]} Kh6 {[%clk 00:01:02]} {[%emt 00:00:06]} 40.
Bf4+ {[%clk 00:02:21]} {[%emt 00:00:10]} 1-0

[Event "Masters Tournament (MTO)"]
[Site "Biel, Switzerland"]
[Date "2026.07.21"]
[Round "8.18"]
[White "Angst, Oliver"]
[Black "Cherniaev, Alexander"]
[Result "0-1"]
[TimeControl "100+30+30sec/move"]
[WhiteTitle "-"]
[BlackTitle "-"]
[WhiteFideId "1334069"]
[BlackFideId "4117301"]
[WhiteElo "2121"]
[BlackElo "2275"]

1. e4 {[%clk 01:37:35]} {[%emt 00:03:22]} c6 {[%clk 01:40:54]} {[%emt
00:00:07]} 2. d4 {[%clk 01:37:41]} {[%emt 00:00:23]} d5 {[%clk 01:41:20]}
{[%emt 00:00:05]} 3. Nc3 {[%clk 01:38:01]} {[%emt 00:00:11]} g6 {[%clk
01:41:37]} {[%emt 00:00:13]} 4. e5 {[%clk 01:20:19]} {[%emt 00:18:11]} Bg7
{[%clk 01:41:57]} {[%emt 00:00:10]} 5. Be3 {[%clk 01:16:45]} {[%emt 00:04:04]}
Qb6 {[%clk 01:42:20]} {[%emt 00:00:07]} 6. Qd2 {[%clk 00:41:46]} {[%emt
00:35:29]} Qxb2 {[%clk 01:42:42]} {[%emt 00:00:08]} 7. Rb1 {[%clk 00:42:13]}
{[%emt 00:00:03]} Qa3 {[%clk 01:43:05]} {[%emt 00:00:06]} 8. h4 {[%clk
00:42:25]} {[%emt 00:00:18]} h5 {[%clk 01:43:29]} {[%emt 00:00:07]} 9. Nh3
{[%clk 00:41:33]} {[%emt 00:01:22]} Qa5 {[%clk 01:40:23]} {[%emt 00:03:36]} 10.
Nf4 {[%clk 00:32:03]} {[%emt 00:10:00]} Nh6 {[%clk 01:32:23]} {[%emt 00:08:30]}
11. f3 {[%clk 00:29:04]} {[%emt 00:03:29]} Nf5 {[%clk 01:30:31]} {[%emt
00:02:21]} 12. Bf2 {[%clk 00:19:58]} {[%emt 00:09:37]} Bh6 {[%clk 01:30:55]}
{[%emt 00:00:06]} 13. Rb3 {[%clk 00:20:23]} {[%emt 00:00:05]} Ng7 {[%clk
01:30:56]} {[%emt 00:00:29]} 14. Be3 {[%clk 00:17:34]} {[%emt 00:03:19]} Bxf4
{[%clk 01:24:04]} {[%emt 00:07:22]} 15. Bxf4 {[%clk 00:17:58]} {[%emt
00:00:05]} Qd8 {[%clk 01:24:15]} {[%emt 00:00:20]} 16. Be2 {[%clk 00:13:29]}
{[%emt 00:04:59]} b6 {[%clk 01:21:51]} {[%emt 00:02:53]} 17. g4 {[%clk
00:13:15]} {[%emt 00:00:44]} Ba6 {[%clk 01:22:07]} {[%emt 00:00:15]} 18. Bh6
{[%clk 00:11:53]} {[%emt 00:01:52]} Ne6 {[%clk 01:22:31]} {[%emt 00:00:06]} 19.
gxh5 {[%clk 00:11:13]} {[%emt 00:01:10]} gxh5 {[%clk 01:22:53]} {[%emt
00:00:08]} 20. Rg1 {[%clk 00:09:08]} {[%emt 00:02:35]} Kd7 {[%clk 01:18:16]}
{[%emt 00:05:06]} 21. Be3 {[%clk 00:05:44]} {[%emt 00:03:55]} Rg8 {[%clk
01:18:01]} {[%emt 00:00:45]} 22. f4 {[%clk 00:03:49]} {[%emt 00:02:25]} Rxg1+
{[%clk 01:17:59]} {[%emt 00:00:32]} 23. Bxg1 {[%clk 00:04:14]} {[%emt
00:00:04]} Qg8 {[%clk 01:17:46]} {[%emt 00:00:43]} 24. Bf2 {[%clk 00:04:40]}
{[%emt 00:00:04]} Qh7 {[%clk 01:14:42]} {[%emt 00:03:34]} 25. Bxa6 {[%clk
00:01:02]} {[%emt 00:04:09]} Nxa6 {[%clk 01:15:02]} {[%emt 00:00:09]} 26. Ne2
{[%clk 00:01:14]} {[%emt 00:00:18]} Rg8 {[%clk 01:13:32]} {[%emt 00:02:00]} 27.
Ng3 {[%clk 00:00:44]} {[%emt 00:01:00]} Rg4 {[%clk 01:09:23]} {[%emt 00:04:39]}
28. f5 {[%clk 00:01:06]} {[%emt 00:00:09]} Nf4 {[%clk 01:09:03]} {[%emt
00:00:49]} 29. Rf3 {[%clk 00:00:39]} {[%emt 00:00:57]} Ng2+ {[%clk 01:08:44]}
{[%emt 00:00:50]} 30. Kf1 {[%clk 00:01:02]} {[%emt 00:00:07]} Nxh4 {[%clk
01:09:10]} {[%emt 00:00:04]} 31. e6+ {[%clk 00:00:52]} {[%emt 00:00:40]} fxe6
{[%clk 01:09:05]} {[%emt 00:00:35]} 32. Qd3 {[%clk 00:01:17]} {[%emt 00:00:06]}
exf5 {[%clk 01:08:54]} {[%emt 00:00:40]} 33. Qxa6 {[%clk 00:01:06]} {[%emt
00:00:40]} Nxf3 {[%clk 01:09:13]} {[%emt 00:00:11]} 34. Qb7+ {[%clk 00:01:29]}
{[%emt 00:00:08]} Kd6 {[%clk 01:07:34]} {[%emt 00:02:09]} 35. Qb8+ {[%clk
00:00:33]} {[%emt 00:01:26]} Ke6 {[%clk 01:06:39]} {[%emt 00:01:25]} 36. Qc8+
{[%clk 00:00:47]} {[%emt 00:00:16]} Kf7 {[%clk 01:06:25]} {[%emt 00:00:44]} 37.
Qxc6 {[%clk 00:00:46]} {[%emt 00:00:31]} Nxd4 {[%clk 01:03:28]} {[%emt
00:03:26]} 38. Qxd5+ {[%clk 00:00:34]} {[%emt 00:00:43]} Ne6 {[%clk 01:03:52]}
{[%emt 00:00:06]} 39. Nxf5 {[%clk 00:00:31]} {[%emt 00:00:32]} Rg5 {[%clk
01:04:13]} {[%emt 00:00:10]} 40. Nd6+ {[%clk 00:00:40]} {[%emt 00:00:21]} exd6
{[%clk 01:04:29]} {[%emt 00:00:14]} 41. Qb7+ {[%clk 00:30:09]} {[%emt
00:01:00]} Kg8 {[%clk 01:34:06]} {[%emt 00:00:54]} 42. Qc8+ {[%clk 00:29:41]}
{[%emt 00:00:58]} Nf8 {[%clk 01:34:24]} {[%emt 00:00:11]} 43. Qc4+ {[%clk
00:30:09]} {[%emt 00:00:02]} Qf7 {[%clk 01:34:41]} {[%emt 00:00:14]} 0-1

[Event "Masters Tournament (MTO)"]
[Site "Biel, Switzerland"]
[Date "2026.07.21"]
[Round "8.19"]
[White "Stefan, Iulia-Cristiana"]
[Black "Rappazzo, Johannes"]
[Result "1-0"]
[TimeControl "100+30+30sec/move"]
[WhiteTitle "-"]
[BlackTitle "-"]
[WhiteFideId "1273876"]
[BlackFideId "1340069"]
[WhiteElo "2053"]
[BlackElo "2268"]

1. d4 {[%clk 01:40:58]} Nf6 {[%clk 01:40:57]} {[%emt 00:00:04]} 2. Nf3 {[%clk
01:41:24]} {[%emt 00:00:04]} g6 {[%clk 01:41:24]} {[%emt 00:00:03]} 3. c4
{[%clk 01:41:48]} {[%emt 00:00:05]} Bg7 {[%clk 01:41:51]} {[%emt 00:00:06]} 4.
g3 {[%clk 01:42:13]} {[%emt 00:00:02]} O-O {[%clk 01:42:17]} {[%emt 00:00:05]}
5. Bg2 {[%clk 01:42:36]} {[%emt 00:00:08]} d6 {[%clk 01:42:45]} 6. Nc3 {[%clk
01:42:59]} {[%emt 00:00:06]} Nbd7 {[%clk 01:43:08]} {[%emt 00:00:08]} 7. O-O
{[%clk 01:43:18]} {[%emt 00:00:09]} e5 {[%clk 01:43:35]} {[%emt 00:00:04]} 8.
e4 {[%clk 01:43:21]} {[%emt 00:00:27]} exd4 {[%clk 01:43:55]} {[%emt 00:00:11]}
9. Nxd4 {[%clk 01:43:43]} {[%emt 00:00:07]} Nc5 {[%clk 01:44:00]} {[%emt
00:00:25]} 10. h3 {[%clk 01:34:29]} {[%emt 00:09:44]} Re8 {[%clk 01:44:19]}
{[%emt 00:00:12]} 11. f3 {[%clk 01:34:34]} {[%emt 00:00:25]} c6 {[%clk
01:25:32]} {[%emt 00:19:17]} 12. Be3 {[%clk 01:32:18]} {[%emt 00:02:46]} d5
{[%clk 01:07:03]} {[%emt 00:18:59]} 13. Nxc6 {[%clk 01:24:37]} {[%emt
00:08:10]} bxc6 {[%clk 01:05:07]} {[%emt 00:02:27]} 14. Bxc5 {[%clk 01:24:37]}
{[%emt 00:00:30]} Nh5 {[%clk 01:00:06]} {[%emt 00:05:30]} 15. exd5 {[%clk
00:52:54]} {[%emt 00:32:14]} Nxg3 {[%clk 00:54:38]} {[%emt 00:05:58]} 16. Re1
{[%clk 00:47:03]} {[%emt 00:06:21]} Ba6 {[%clk 00:44:59]} {[%emt 00:10:08]} 17.
dxc6 {[%clk 00:35:44]} {[%emt 00:11:49]} Qg5 {[%clk 00:41:25]} {[%emt
00:04:04]} 18. Qd5 {[%clk 00:33:54]} {[%emt 00:02:20]} Qh4 {[%clk 00:36:21]}
{[%emt 00:05:34]} 19. Bf2 {[%clk 00:30:58]} {[%emt 00:03:25]} Red8 {[%clk
00:29:06]} {[%emt 00:07:46]} 20. Qe4 {[%clk 00:19:10]} {[%emt 00:12:18]} Nxe4
{[%clk 00:26:02]} {[%emt 00:03:35]} 21. Bxh4 {[%clk 00:19:38]} {[%emt
00:00:02]} g5 {[%clk 00:20:56]} {[%emt 00:05:36]} 22. fxe4 {[%clk 00:16:48]}
{[%emt 00:03:20]} gxh4 {[%clk 00:21:03]} {[%emt 00:00:22]} 23. e5 {[%clk
00:15:00]} {[%emt 00:02:19]} Re8 {[%clk 00:21:09]} {[%emt 00:00:24]} 24. Nd5
{[%clk 00:13:39]} {[%emt 00:01:51]} Rac8 {[%clk 00:21:26]} {[%emt 00:00:13]} 25.
Nf6+ {[%clk 00:13:22]} {[%emt 00:00:47]} Bxf6 {[%clk 00:21:50]} {[%emt
00:00:05]} 26. exf6 {[%clk 00:13:51]} {[%emt 00:00:02]} Bxc4 {[%clk 00:22:02]}
{[%emt 00:00:17]} 27. Rxe8+ {[%clk 00:12:21]} {[%emt 00:02:00]} Rxe8 {[%clk
00:22:31]} {[%emt 00:00:01]} 28. b3 {[%clk 00:11:46]} {[%emt 00:01:06]} Ba6
{[%clk 00:22:52]} {[%emt 00:00:08]} 29. Rd1 {[%clk 00:11:29]} {[%emt 00:00:46]}
h5 {[%clk 00:23:03]} {[%emt 00:00:20]} 30. Rd7 {[%clk 00:10:46]} {[%emt
00:01:13]} Kh7 {[%clk 00:23:24]} {[%emt 00:00:09]} 31. Rxf7+ {[%clk 00:10:36]}
{[%emt 00:00:41]} Kg6 {[%clk 00:23:49]} {[%emt 00:00:05]} 32. Rxa7 {[%clk
00:10:39]} {[%emt 00:00:27]} Bc8 {[%clk 00:21:54]} {[%emt 00:02:25]} 33. f7
{[%clk 00:10:47]} {[%emt 00:00:22]} Rd8 {[%clk 00:22:15]} {[%emt 00:00:09]} 34.
b4 {[%clk 00:07:53]} {[%emt 00:03:24]} Kg5 {[%clk 00:14:31]} {[%emt 00:08:13]}
35. b5 {[%clk 00:06:58]} {[%emt 00:01:26]} Kf4 {[%clk 00:14:29]} {[%emt
00:00:31]} 36. b6 {[%clk 00:06:47]} {[%emt 00:00:41]} Bf5 {[%clk 00:14:20]}
{[%emt 00:00:39]} 37. Kh2 {[%clk 00:06:07]} {[%emt 00:01:10]} 1-0

[Event "Masters Tournament (MTO)"]
[Site "Biel, Switzerland"]
[Date "2026.07.21"]
[Round "8.20"]
[White "Nguyen, Thi Mai Hung"]
[Black "Erne, Raphael"]
[Result "1/2-1/2"]
[TimeControl "100+30+30sec/move"]
[WhiteTitle "-"]
[BlackTitle "-"]
[WhiteFideId "12401676"]
[BlackFideId "1341928"]
[WhiteElo "2260"]
[BlackElo "2166"]

1. d4 {[%clk 01:40:53]} {[%emt 00:00:07]} Nf6 {[%clk 01:40:48]} {[%emt
00:00:15]} 2. Nf3 {[%clk 01:40:50]} {[%emt 00:00:32]} c5 {[%clk 01:41:00]}
{[%emt 00:00:17]} 3. d5 {[%clk 01:41:11]} {[%emt 00:00:09]} b5 {[%clk
01:41:18]} {[%emt 00:00:12]} 4. e4 {[%clk 01:41:26]} {[%emt 00:00:15]} Nxe4
{[%clk 01:41:29]} {[%emt 00:00:18]} 5. Bd3 {[%clk 01:41:50]} {[%emt 00:00:07]}
Qa5+ {[%clk 01:41:31]} {[%emt 00:00:28]} 6. c3 {[%clk 01:36:22]} {[%emt
00:05:58]} Nf6 {[%clk 01:41:35]} {[%emt 00:00:26]} 7. O-O {[%clk 01:35:42]}
{[%emt 00:01:09]} c4 {[%clk 01:38:40]} {[%emt 00:03:26]} 8. Bc2 {[%clk
01:27:20]} {[%emt 00:08:52]} Bb7 {[%clk 01:36:38]} {[%emt 00:02:33]} 9. Bg5
{[%clk 01:24:52]} {[%emt 00:02:57]} e6 {[%clk 01:35:07]} {[%emt 00:02:00]} 10.
dxe6 {[%clk 01:04:58]} {[%emt 00:20:25]} dxe6 {[%clk 01:33:19]} {[%emt
00:02:18]} 11. Nbd2 {[%clk 01:04:12]} {[%emt 00:01:16]} Qb6 {[%clk 01:21:25]}
{[%emt 00:12:24]} 12. a4 {[%clk 01:03:09]} {[%emt 00:01:33]} a6 {[%clk
01:19:26]} {[%emt 00:02:29]} 13. Nd4 {[%clk 00:54:23]} {[%emt 00:09:15]} Nbd7
{[%clk 01:11:18]} {[%emt 00:08:38]} 14. Bxf6 {[%clk 00:50:26]} {[%emt
00:04:28]} gxf6 {[%clk 01:11:27]} {[%emt 00:00:21]} 15. Be4 {[%clk 00:48:21]}
{[%emt 00:02:34]} Bxe4 {[%clk 01:06:19]} {[%emt 00:05:38]} 16. Nxe4 {[%clk
00:48:49]} {[%emt 00:00:03]} Rb8 {[%clk 00:56:39]} {[%emt 00:10:10]} 17. axb5
{[%clk 00:46:26]} {[%emt 00:02:53]} axb5 {[%clk 00:53:39]} {[%emt 00:03:30]} 18.
Qh5 {[%clk 00:37:39]} {[%emt 00:09:17]} Bg7 {[%clk 00:45:10]} {[%emt 00:08:58]}
19. Qxb5 {[%clk 00:26:45]} {[%emt 00:11:24]} f5 {[%clk 00:38:06]} {[%emt
00:07:34]} 20. Qxb6 {[%clk 00:26:41]} {[%emt 00:00:35]} Rxb6 {[%clk 00:38:09]}
{[%emt 00:00:27]} 21. Nd2 {[%clk 00:25:30]} {[%emt 00:01:41]} Bxd4 {[%clk
00:28:44]} {[%emt 00:09:55]} 22. cxd4 {[%clk 00:25:23]} {[%emt 00:00:37]} Ke7
{[%clk 00:27:08]} {[%emt 00:02:05]} 23. Nxc4 {[%clk 00:23:03]} {[%emt
00:02:51]} Rb4 {[%clk 00:26:47]} {[%emt 00:00:51]} 24. Na5 {[%clk 00:10:58]}
{[%emt 00:12:35]} Rxb2 {[%clk 00:23:15]} {[%emt 00:04:02]} 25. Rfc1 {[%clk
00:10:26]} {[%emt 00:01:02]} Kf6 {[%clk 00:21:26]} {[%emt 00:02:19]} 26. Nc4
{[%clk 00:09:10]} {[%emt 00:01:46]} Rb4 {[%clk 00:19:42]} {[%emt 00:02:14]} 27.
Rab1 {[%clk 00:08:22]} {[%emt 00:01:18]} 1/2-1/2

[Event "Masters Tournament (MTO)"]
[Site "Biel, Switzerland"]
[Date "2026.07.21"]
[Round "8.21"]
[White "Gireada, Daniel"]
[Black "Coban, Ege"]
[Result "0-1"]
[TimeControl "100+30+30sec/move"]
[WhiteTitle "-"]
[BlackTitle "-"]
[WhiteFideId "1206451"]
[BlackFideId "26320304"]
[WhiteElo "2255"]
[BlackElo "1986"]

1. d4 {[%clk 01:40:56]} {[%emt 00:00:02]} d5 {[%clk 01:40:42]} {[%emt
00:00:20]} 2. c4 {[%clk 01:41:20]} {[%emt 00:00:05]} c6 {[%clk 01:41:09]}
{[%emt 00:00:03]} 3. Nc3 {[%clk 01:41:07]} {[%emt 00:00:43]} Nf6 {[%clk
01:41:34]} {[%emt 00:00:05]} 4. Nf3 {[%clk 01:40:37]} {[%emt 00:00:59]} dxc4
{[%clk 01:41:56]} {[%emt 00:00:09]} 5. a4 {[%clk 01:40:08]} {[%emt 00:00:59]}
Bf5 {[%clk 01:42:22]} {[%emt 00:00:04]} 6. e3 {[%clk 01:40:14]} {[%emt
00:00:25]} e6 {[%clk 01:39:54]} {[%emt 00:02:57]} 7. Bxc4 {[%clk 01:40:32]}
{[%emt 00:00:12]} Be7 {[%clk 01:40:01]} {[%emt 00:00:23]} 8. O-O {[%clk
01:40:36]} {[%emt 00:00:25]} O-O {[%clk 01:29:49]} {[%emt 00:10:42]} 9. Re1
{[%clk 01:40:10]} {[%emt 00:00:57]} Bb4 {[%clk 01:25:35]} {[%emt 00:04:44]} 10.
Qb3 {[%clk 01:33:01]} {[%emt 00:07:39]} a5 {[%clk 01:25:11]} {[%emt 00:00:53]}
11. Bd2 {[%clk 01:32:33]} {[%emt 00:00:58]} Na6 {[%clk 01:20:13]} {[%emt
00:05:29]} 12. Rad1 {[%clk 01:13:22]} {[%emt 00:19:41]} Bg4 {[%clk 01:17:03]}
{[%emt 00:03:40]} 13. Be2 {[%clk 01:04:46]} {[%emt 00:09:06]} Nc7 {[%clk
01:13:29]} {[%emt 00:04:03]} 14. h3 {[%clk 01:04:23]} {[%emt 00:00:53]} Bh5
{[%clk 01:11:54]} {[%emt 00:02:06]} 15. e4 {[%clk 00:48:24]} {[%emt 00:16:29]}
Bxc3 {[%clk 01:06:39]} {[%emt 00:05:44]} 16. bxc3 {[%clk 00:44:59]} {[%emt
00:03:56]} Nxe4 {[%clk 01:06:38]} {[%emt 00:00:32]} 17. Qb4 {[%emt 00:00:16]}
b6 18. Qxb6 {[%clk 00:45:12]} Nd5 {[%clk 01:00:59]} {[%emt 00:06:09]} 19. Qb2
{[%clk 00:39:27]} {[%emt 00:06:16]} Qf6 {[%clk 00:53:55]} {[%emt 00:07:33]} 20.
c4 {[%clk 00:33:10]} {[%emt 00:06:47]} Nxd2 {[%clk 00:52:51]} {[%emt 00:01:34]}
21. Nxd2 {[%clk 00:27:59]} {[%emt 00:05:40]} Bxe2 {[%clk 00:52:37]} {[%emt
00:00:44]} 22. Rxe2 {[%clk 00:28:23]} {[%emt 00:00:07]} Nf4 {[%clk 00:52:45]}
{[%emt 00:00:22]} 23. Re3 {[%clk 00:25:50]} {[%emt 00:03:03]} Qg6 {[%clk
00:44:00]} {[%emt 00:09:15]} 24. g4 {[%clk 00:22:21]} {[%emt 00:03:59]} Nxh3+
{[%clk 00:44:00]} {[%emt 00:00:30]} 25. Rxh3 {[%clk 00:18:13]} {[%emt
00:04:38]} Qxg4+ {[%clk 00:44:19]} {[%emt 00:00:10]} 26. Kh2 {[%clk 00:18:26]}
{[%emt 00:00:17]} Qxd1 {[%clk 00:44:40]} {[%emt 00:00:08]} 27. Qc3 {[%clk
00:18:48]} {[%emt 00:00:11]} f5 {[%clk 00:43:12]} {[%emt 00:01:57]} 28. Qe3
{[%clk 00:18:54]} {[%emt 00:00:23]} Rf6 {[%clk 00:42:39]} {[%emt 00:01:03]} 29.
Nf3 {[%clk 00:19:18]} {[%emt 00:00:06]} Rb8 {[%clk 00:42:40]} {[%emt 00:00:29]}
0-1